[Event "Lueneburg Open-A 2019"]
[Site "Lueneburg"]
[Date "2019.08.07"]
[Round "5.7"]
[White "Kolbus, Dietmar"]
[Black "Carlstedt, Jonathan"]
[Result "0-1"]
[ECO "A09"]
[WhiteElo "2281"]
[BlackElo "2408"]
[Annotator "NA"]
[PlyCount "70"]
[EventDate "2019.08.03"]
[EventType "swiss"]
[EventCountry "GER"]
[SourceTitle "playchess.com"]
[Source "ChessBase"]
[SourceQuality "1"]
[TimeControl "40/5400+30:1800+30"]

1. Nf3 {[%emt 0:00:00]} d5 {[%emt 0:00:02]} 2. c4 {[%emt 0:00:00]} d4 {[%emt 0:00:07]} 3. e4 {[%emt 0:00:55]} Nc6 {[%emt 0:02:00]} 4. d3 {[%emt 0:00:07]} e5 {[%emt 0:00:56]} 5. g3 {[%emt 0:00:23]} Be7 {[%emt 0:01:05]} 6. Bg2 {[%emt 0:00:12]} h5 {[%emt 0:00:19]} 7. h4 {[%emt 0:00:33]} Nf6 {[%emt 0:03:33]} 8. a3 {[%emt 0:03:19]} a5 {[%emt 0:01:07]} 9. b3 {[%emt 0:00:33]} Nd7 {[%emt 0:01:53]} 10. Qc2 {[%emt 0:07:04]} Nc5 {[%emt 0:01:45]} 11. O-O {[%emt 0:02:52]} Bg4 {[%emt 0:01:12]} 12. Re1 {[%emt 0:00:13]} Bxf3 {[%emt 0:03:58]} 13. Bxf3 {[%emt 0:00:07]} g5 {[%emt 0:00:04]} 14. hxg5 {[%emt 0:00:23]} Bxg5 {[%emt 0:00:05]} 15. Nd2 {[%emt 0:02:13]} Qf6 {[%emt 0:02:09]} 16. Bg2 {[%emt 0:01:54]} h4 {[%emt 0:02:13]} 17. Nf1 {[%emt 0:02:38]} Bxc1 {[%emt 0:01:58]} 18. Raxc1 {[%emt 0:00:27]} h3 {[%emt 0:00:09]} 19. Bh1 {[%emt 0:00:32]} h2+ {[%emt 0:00:15]} 20. Kg2 {[%emt 0:00:40]} O-O-O {[%emt 0:01:45]} 21. Nd2 {[%emt 0:06:32]} Rdg8 {[%emt 0:04:23]} 22. Nf3 {[%emt 0:00:24]} Qh6 {[%emt 0:00:23]} 23. Kf1 {[%emt 0:00:25]} f5 {[%emt 0:00:17]} 24. Nd2 {[%emt 0:08:21]} f4 {[%emt 0:07:09]} 25. gxf4 {[%emt 0:00:16]} Ne6 {[%emt 0:00:32]} 26. Ke2 {[%emt 0:02:37]} Nxf4+ {[%emt 0:00:07]} 27. Kd1 {[%emt 0:00:12]} Rg1 {[%emt 0:00:14]} 28. Qb1 {[%emt 0:02:37]} Qh3 {[%emt 0:04:17]} 29. f3 {[%emt 0:01:53]} Ng2 {[%emt 0:00:09]} 30. Kc2 {[%emt 0:03:26]} Nxe1+ {[%emt 0:00:15]} 31. Rxe1 {[%emt 0:00:02]} Qg3 {[%emt 0:00:12]} 32. Rf1 {[%emt 0:00:22]} Rxf1 {[%emt 0:00:19]} 33. Qxf1 {[%emt 0:00:06]} Qg1 {[%emt 0:00:12]} 34. Kd1 {[%emt 0:00:44]} Qxf1+ {[%emt 0:00:12]} 35. Nxf1 {[%emt 0:00:06]} Rg8 {[%emt 0:00:08]} 0-1

[Event "Lueneburg Open-A 2019"]
[Site "Lueneburg"]
[Date "2019.08.07"]
[Round "5.8"]
[White "Sriram, Jha"]
[Black "Koellner, Christof"]
[Result "1-0"]
[ECO "A55"]
[WhiteElo "2381"]
[BlackElo "2091"]
[Annotator "NA"]
[PlyCount "79"]
[EventDate "2019.08.03"]
[EventType "swiss"]
[EventCountry "GER"]
[SourceTitle "playchess.com"]
[Source "ChessBase"]
[SourceQuality "1"]
[TimeControl "40/5400+30:1800+30"]

1. d4 {[%emt 0:00:53]} Nf6 {[%emt 0:00:00]} 2. Nf3 {[%emt 0:00:18]} d6 {[%emt 0:01:25]} 3. g3 {[%emt 0:00:13]} c6 {[%emt 0:01:12]} 4. Bg2 {[%emt 0:00:35]} Nbd7 {[%emt 0:04:43]} 5. c4 {[%emt 0:03:49]} e5 {[%emt 0:02:11]} 6. Nc3 {[%emt 0:00:06]} Be7 {[%emt 0:00:06]} 7. e4 {[%emt 0:00:43]} O-O {[%emt 0:00:26]} 8. O-O {[%emt 0:00:03]} Re8 {[%emt 0:01:47]} 9. Re1 {[%emt 0:00:59]} Qc7 {[%emt 0:01:14]} 10. h3 {[%emt 0:01:01]} a6 {[%emt 0:00:47]} 11. a4 {[%emt 0:00:15]} a5 {[%emt 0:00:09]} 12. Be3 {[%emt 0:05:06]} Bf8 {[%emt 0:02:19]} 13. Qc2 {[%emt 0:00:34]} exd4 {[%emt 0:09:57]} 14. Nxd4 {[%emt 0:03:36]} Nc5 {[%emt 0:00:31]} 15. Rad1 {[%emt 0:00:40]} h6 {[%emt 0:11:05]} 16. f4 {[%emt 0:01:31]} Bd7 {[%emt 0:06:45]} 17. Bf2 {[%emt 0:02:39]} h5 {[%emt 0:08:01]} 18. Nf3 {[%emt 0:08:09]} Qc8 {[%emt 0:10:31]} 19. Kh2 {[%emt 0:06:40]} g6 {[%emt 0:03:56]} 20. Bd4 {[%emt 0:06:56]} Nh7 {[%emt 0:03:21]} 21. Rd2 {[%emt 0:11:59]} Qc7 {[%emt 0:06:54]} 22. b3 {[%emt 0:13:52]} Rad8 {[%emt 0:03:18]} 23. Rde2 {[%emt 0:03:34]} Qb6 {[%emt 0:05:26]} 24. Rb1 {[%emt 0:00:02]} Bg7 {[%emt 0:01:40]} 25. Qd1 {[%emt 0:03:01]} Be6 {[%emt 0:01:54]} 26. Bxg7 {[%emt 0:04:51]} Kxg7 {[%emt 0:00:02]} 27. Nd4 {[%emt 0:00:38]} Bc8 {[%emt 0:01:01]} 28. Qd2 {[%emt 0:00:55]} Qc7 {[%emt 0:02:42]} 29. Nd1 {[%emt 0:01:14]} Nf6 {[%emt 0:02:13]} 30. Nf2 {[%emt 0:00:15]} Re7 {[%emt 0:01:11]} 31. Rbe1 {[%emt 0:01:58]} Rde8 {[%emt 0:00:17]} 32. Qc3 {[%emt 0:01:58]} Be6 {[%emt 0:06:02]} 33. Kg1 {[%emt 0:09:00]} Qb6 {[%emt 0:00:16]} 34. e5 {[%emt 0:01:07]} dxe5 {[%emt 0:00:46]} 35. Rxe5 {[%emt 0:00:08]} Kg8 {[%emt 0:02:18]} 36. f5 {[%emt 0:02:59]} gxf5 {[%emt 0:00:17]} 37. Nxf5 {[%emt 0:01:06]} Qb4 {[%emt 0:01:10]} 38. Nxe7+ {[%emt 0:00:26]} Rxe7 {[%emt 0:00:00]} 39. Qxb4 {[%emt 0:00:08]} axb4 {[%emt 0:00:05]} 40. Rxc5 {[%emt 0:00:04]} 1-0

[Event "Lueneburg Open-A 2019"]
[Site "Lueneburg"]
[Date "2019.08.07"]
[Round "5.9"]
[White "Buchenau, Frank"]
[Black "Chennaoui, Yasin"]
[Result "1-0"]
[ECO "B21"]
[WhiteElo "2294"]
[BlackElo "2092"]
[Annotator "NA"]
[PlyCount "127"]
[EventDate "2019.08.03"]
[EventType "swiss"]
[EventCountry "GER"]
[SourceTitle "playchess.com"]
[Source "ChessBase"]
[SourceQuality "1"]
[TimeControl "40/5400+30:1800+30"]

1. e4 {[%emt 0:00:00]} c5 {[%emt 0:00:00]} 2. d3 {[%emt 0:00:00]} Nc6 {[%emt 0:00:00]} 3. f4 {[%emt 0:00:00]} g6 {[%emt 0:01:12]} 4. Nf3 {[%emt 0:00:02]} Bg7 {[%emt 0:00:06]} 5. Be2 {[%emt 0:00:06]} e6 {[%emt 0:01:43]} 6. c3 {[%emt 0:00:38]} Nge7 {[%emt 0:00:17]} 7. O-O {[%emt 0:00:21]} O-O {[%emt 0:01:06]} 8. Na3 {[%emt 0:01:24]} b6 {[%emt 0:14:11]} 9. Nb5 {[%emt 0:01:41]} d6 {[%emt 0:03:09]} 10. d4 {[%emt 0:00:14]} a6 {[%emt 0:00:39]} 11. dxc5 {[%emt 0:00:12]} dxc5 {[%emt 0:01:22]} 12. Nd6 {[%emt 0:08:33]} Nd4 {[%emt 0:01:18]} 13. cxd4 {[%emt 0:08:02]} Qxd6 {[%emt 0:00:13]} 14. Be3 {[%emt 0:01:11]} cxd4 {[%emt 0:01:56]} 15. e5 {[%emt 0:14:15]} Qb4 {[%emt 0:04:19]} 16. a3 {[%emt 0:05:02]} Qa5 {[%emt 0:04:22]} 17. Qxd4 {[%emt 0:04:26]} Nf5 {[%emt 0:06:40]} 18. Qxb6 {[%emt 0:01:00]} Qxb6 {[%emt 0:00:10]} 19. Bxb6 {[%emt 0:00:07]} Rb8 {[%emt 0:00:03]} 20. Bc5 {[%emt 0:00:25]} Rxb2 {[%emt 0:00:14]} 21. Bd3 {[%emt 0:07:32]} Bb7 {[%emt 0:09:37]} 22. Bxf5 {[%emt 0:19:49]} gxf5 {[%emt 0:00:36]} 23. Bxf8 {[%emt 0:03:33]} Bxf8 {[%emt 0:00:12]} 24. Rfb1 {[%emt 0:06:01]} Bc5+ {[%emt 0:01:08]} 25. Kh1 {[%emt 0:02:16]} Bxa3 {[%emt 0:02:38]} 26. Rxb2 {[%emt 0:00:40]} Bxb2 {[%emt 0:00:10]} 27. Rb1 {[%emt 0:00:08]} Bxf3 {[%emt 0:00:05]} 28. Rxb2 {[%emt 0:01:22]} Bd5 {[%emt 0:00:49]} 29. Rb6 {[%emt 0:00:56]} Bc4 {[%emt 0:00:19]} 30. Rb7 {[%emt 0:00:49]} Kg7 {[%emt 0:04:46]} 31. Kg1 {[%emt 0:00:27]} Bd3 {[%emt 0:42:10]} 32. Ra7 {[%emt 0:01:16]} Bb5 {[%emt 0:00:00]} 33. Kf2 {[%emt 0:00:08]} Bd3 {[%emt 0:00:00]} 34. Ke3 {[%emt 0:01:14]} Bf1 {[%emt 0:00:00]} 35. g3 {[%emt 0:01:22]} Bb5 {[%emt 0:00:00]} 36. Kd4 {[%emt 0:00:10]} Bf1 {[%emt 0:00:00]} 37. Kc5 {[%emt 0:00:14]} Be2 {[%emt 0:00:00]} 38. Kd6 {[%emt 0:00:04]} Bd3 {[%emt 0:00:00]} 39. Ke7 {[%emt 0:00:07]} Bb5 {[%emt 0:00:00]} 40. Ra8 {[%emt 0:01:17]} Be2 {[%emt 0:00:00]} 41. Rf8 {[%emt 0:31:13]} Bh5 {[%emt 0:00:18]} 42. h3 {[%emt 0:01:19]} a5 {[%emt 0:01:19]} 43. Ra8 {[%emt 0:00:57]} Bf3 {[%emt 0:00:16]} 44. Rxa5 {[%emt 0:03:08]} Bg2 {[%emt 0:02:45]} 45. Ra7 {[%emt 0:01:55]} Bf3 {[%emt 0:00:48]} 46. Rc7 {[%emt 0:00:38]} Be2 {[%emt 0:01:05]} 47. Rc8 {[%emt 0:00:23]} Bh5 {[%emt 0:00:44]} 48. Rf8 {[%emt 0:00:13]} Bg6 {[%emt 0:00:04]} 49. g4 {[%emt 0:01:24]} fxg4 {[%emt 0:00:40]} 50. hxg4 {[%emt 0:00:07]} h5 {[%emt 0:00:16]} 51. gxh5 {[%emt 0:05:26]} Bxh5 {[%emt 0:00:11]} 52. Rb8 {[%emt 0:00:07]} Bd1 {[%emt 0:02:02]} 53. Rb1 {[%emt 0:00:20]} Bc2 {[%emt 0:00:09]} 54. Rg1+ {[%emt 0:00:08]} Bg6 {[%emt 0:00:04]} 55. Rg3 {[%emt 0:00:14]} Kh6 {[%emt 0:00:29]} 56. Kf6 {[%emt 0:00:09]} Kh5 {[%emt 0:00:10]} 57. Rxg6 {[%emt 0:01:57]} fxg6 {[%emt 0:00:02]} 58. Kxe6 {[%emt 0:00:11]} Kg4 {[%emt 0:00:04]} 59. Kf6 {[%emt 0:00:15]} Kxf4 {[%emt 0:00:05]} 60. e6 {[%emt 0:00:07]} g5 {[%emt 0:00:10]} 61. e7 {[%emt 0:00:51]} g4 {[%emt 0:00:03]} 62. e8=Q {[%emt 0:00:08]} g3 {[%emt 0:00:02]} 63. Qe2 {[%emt 0:00:20]} g2 {[%emt 0:00:20]} 64. Qxg2 {[%emt 0:00:08]} 1-0

[Event "Lueneburg Open-A 2019"]
[Site "Lueneburg"]
[Date "2019.08.07"]
[Round "5.10"]
[White "Poeck, Ole"]
[Black "Kiesel, Harald"]
[Result "1-0"]
[ECO "D34"]
[WhiteElo "2259"]
[BlackElo "2023"]
[Annotator "ChessBase"]
[PlyCount "115"]
[EventDate "2019.08.03"]
[EventType "swiss"]
[EventCountry "GER"]
[SourceTitle "playchess.com"]
[Source "ChessBase"]
[SourceQuality "1"]
[TimeControl "40/5400+30:1800+30"]

1. d4 {[%emt 0:00:00]} d5 {[%emt 0:00:00]} 2. c4 {[%emt 0:00:00]} e6 {[%emt 0:00:00]} 3. Nf3 {[%emt 0:00:00]} c5 {[%emt 0:00:05]} 4. cxd5 {[%emt 0:00:03]} exd5 {[%emt 0:00:08]} 5. Nc3 {[%emt 0:00:08]} Nc6 {[%emt 0:00:04]} 6. g3 {[%emt 0:10:43]} Nf6 {[%emt 0:00:12]} 7. Bg2 {[%emt 0:00:13]} Be7 {[%emt 0:00:06]} 8. O-O {[%emt 0:00:13]} O-O {[%emt 0:00:05]} 9. Bg5 {[%emt 0:00:25]} c4 {[%emt 0:00:18]} 10. Ne5 {[%emt 0:00:16]} Be6 {[%emt 0:00:13]} 11. e3 {[%emt 0:03:35]} Re8 {[%emt 0:08:57]} 12. f4 {[%emt 0:10:09]} Nxe5 {[%emt 0:17:57]} 13. dxe5 {[%emt 0:01:26]} Ng4 {[%emt 0:04:32]} 14. Bxe7 {[%emt 0:00:12]} Rxe7 {[%emt 0:05:39]} 15. Qd4 {[%emt 0:07:06]} Nxe3 {[%emt 0:16:16]} 16. Qxe3 {[%emt 0:02:43]} d4 {[%emt 0:00:08]} 17. Qf3 {[%emt 0:04:48]} dxc3 {[%emt 0:00:57]} 18. bxc3 {[%emt 0:00:02]} Rd7 {[%emt 0:06:55]} 19. Rad1 {[%emt 0:05:22]} Qb6+ {[%emt 0:04:16]} 20. Qf2 {[%emt 0:01:25]} Qxf2+ {[%emt 0:02:39]} 21. Kxf2 {[%emt 0:00:02]} Rad8 {[%emt 0:00:28]} 22. Rxd7 {[%emt 0:05:28]} Rxd7 {[%emt 0:00:11]} 23. Re1 {[%emt 0:06:40]} Rd3 {[%emt 0:06:28]} 24. Re3 {[%emt 0:00:43]} Rd2+ {[%emt 0:00:07]} 25. Re2 {[%emt 0:00:06]} Rd3 {[%emt 0:00:04]} 26. Be4 {[%emt 0:02:45]} Rxc3 {[%emt 0:09:15]} 27. f5 {[%emt 0:00:12]} Bd7 {[%emt 0:00:19]} 28. Rd2 {[%emt 0:00:02]} Be8 {[%emt 0:00:15]} 29. Rd8 {[%emt 0:00:45]} Kf8 {[%emt 0:00:44]} 30. f6 {[%emt 0:00:01]} gxf6 {[%emt 0:00:24]} 31. exf6 {[%emt 0:00:02]} Ra3 {[%emt 0:05:26]} 32. Bxb7 {[%emt 0:04:36]} Rxa2+ {[%emt 0:00:03]} 33. Kf3 {[%emt 0:04:19]} Ra1 {[%emt 0:01:38]} 34. Ke2 {[%emt 0:01:28]} Ra2+ {[%emt 0:00:27]} 35. Ke3 {[%emt 0:00:42]} Ra1 {[%emt 0:00:19]} 36. Kd2 {[%emt 0:00:34]} Ra2+ {[%emt 0:01:23]} 37. Kd1 {[%emt 0:03:34]} Ra1+ {[%emt 0:00:07]} 38. Kc2 {[%emt 0:00:17]} Ra2+ {[%emt 0:02:38]} 39. Kc3 {[%emt 0:03:08]} Rxh2 {[%emt 0:03:14]} 40. Bc6 {[%emt 0:00:07]} Re2 {[%emt 0:00:10]} 41. Bd7 {[%emt 0:31:03]} Re4 {[%emt 0:35:50]} 42. Kb4 {[%emt 0:01:28]} a5+ {[%emt 0:00:00]} 43. Kc3 {[%emt 0:00:00]} h5 {[%emt 0:00:00]} 44. Ra8 {[%emt 0:00:00]} a4 {[%emt 0:00:00]} 45. Kb4 {[%emt 0:00:00]} c3+ {[%emt 0:00:35]} 46. Kxc3 {[%emt 0:00:00]} a3 {[%emt 0:00:17]} 47. Kb3 {[%emt 0:00:00]} Re3+ {[%emt 0:00:14]} 48. Ka2 {[%emt 0:00:00]} Re1 {[%emt 0:00:15]} 49. Rb8 {[%emt 0:00:00]} Re3 {[%emt 0:00:14]} 50. Rd8 {[%emt 0:00:00]} Re2+ {[%emt 0:00:41]} 51. Kxa3 {[%emt 0:00:00]} Re3+ {[%emt 0:00:20]} 52. Kb4 {[%emt 0:00:00]} Re4+ {[%emt 0:00:09]} 53. Kc5 {[%emt 0:00:00]} Re1 {[%emt 0:00:29]} 54. Rxe8+ {[%emt 0:00:00]} Rxe8 {[%emt 0:00:07]} 55. Bxe8 {[%emt 0:00:00]} Kxe8 {[%emt 0:00:02]} 56. Kc6 {[%emt 0:00:00]} Kd8 {[%emt 0:01:05]} 57. Kd6 {[%emt 0:00:00]} Ke8 {[%emt 0:00:05]} 58. Kc7 {[%emt 0:00:00]} 1-0

[Event "Lueneburg Open-A 2019"]
[Site "Lueneburg"]
[Date "2019.08.07"]
[Round "5.11"]
[White "Schulz, Daniel"]
[Black "Lubbe, Melanie"]
[Result "0-1"]
[ECO "A41"]
[WhiteElo "2071"]
[BlackElo "2258"]
[Annotator "NA"]
[PlyCount "30"]
[EventDate "2019.08.03"]
[EventType "swiss"]
[EventCountry "GER"]
[SourceTitle "playchess.com"]
[Source "ChessBase"]
[SourceQuality "1"]
[TimeControl "40/5400+30:1800+30"]

1. d4 {[%emt 0:01:14]} d6 {[%emt 0:00:00]} 2. Nf3 {[%emt 0:00:25]} g6 {[%emt 0:00:00]} 3. c4 {[%emt 0:00:21]} Bg7 {[%emt 0:00:02]} 4. g3 {[%emt 0:00:19]} Nd7 {[%emt 0:00:12]} 5. Bg2 {[%emt 0:00:20]} e5 {[%emt 0:00:12]} 6. Nc3 {[%emt 0:00:39]} Ne7 {[%emt 0:00:13]} 7. e4 {[%emt 0:02:31]} exd4 {[%emt 0:01:32]} 8. Nxd4 {[%emt 0:00:41]} Nc6 {[%emt 0:03:26]} 9. Be3 {[%emt 0:02:50]} Nde5 {[%emt 0:05:53]} 10. Nxc6 {[%emt 0:49:15]} bxc6 {[%emt 0:03:01]} 11. c5 {[%emt 0:01:46]} Rb8 {[%emt 0:13:01]} 12. h3 {[%emt 0:24:53]} Rxb2 {[%emt 0:08:12]} 13. Rc1 {[%emt 0:06:23]} O-O {[%emt 0:03:45]} 14. Bf1 {[%emt 0:00:38]} dxc5 {[%emt 0:03:32]} 15. Bxc5 {[%emt 0:00:43]} Nf3+ {[%emt 0:00:29]} 0-1

[Event "Lueneburg Open-A 2019"]
[Site "Lueneburg"]
[Date "2019.08.07"]
[Round "5.12"]
[White "Mueer, Sebastian"]
[Black "Deutschbein, Christopher"]
[Result "1-0"]
[ECO "E90"]
[WhiteElo "2198"]
[BlackElo "2015"]
[Annotator "NA"]
[PlyCount "78"]
[EventDate "2019.08.03"]
[EventType "swiss"]
[EventCountry "GER"]
[SourceTitle "playchess.com"]
[Source "ChessBase"]
[SourceQuality "1"]
[TimeControl "40/5400+30:1800+30"]

1. d4 {[%emt 0:00:00]} Nf6 {[%emt 0:00:00]} 2. Nf3 {[%emt 0:00:45]} g6 {[%emt 0:00:00]} 3. c4 {[%emt 0:00:06]} Bg7 {[%emt 0:00:04]} 4. Nc3 {[%emt 0:00:07]} d6 {[%emt 0:00:07]} 5. e4 {[%emt 0:00:07]} O-O {[%emt 0:00:12]} 6. h3 {[%emt 0:00:09]} e5 {[%emt 0:00:42]} 7. d5 {[%emt 0:00:03]} a5 {[%emt 0:00:15]} 8. Be3 {[%emt 0:00:16]} Na6 {[%emt 0:00:13]} 9. g4 {[%emt 0:00:11]} Nd7 {[%emt 0:00:47]} 10. a3 {[%emt 0:01:04]} Nac5 {[%emt 0:12:35]} 11. Rg1 {[%emt 0:00:20]} a4 {[%emt 0:00:34]} 12. Nd2 {[%emt 0:01:19]} f5 {[%emt 0:14:01]} 13. gxf5 {[%emt 0:02:00]} gxf5 {[%emt 0:00:04]} 14. Bh6 {[%emt 0:14:09]} Rf7 {[%emt 0:00:10]} 15. Qh5 {[%emt 0:12:16]} Nf6 {[%emt 0:05:10]} 16. Qg5 {[%emt 0:02:31]} Qf8 {[%emt 0:00:18]} 17. Qh4 {[%emt 0:08:30]} fxe4 {[%emt 0:09:56]} 18. O-O-O {[%emt 0:01:35]} Bf5 {[%emt 0:02:00]} 19. Be3 {[%emt 0:00:56]} Nb3+ {[%emt 0:08:06]} 20. Nxb3 {[%emt 0:01:12]} axb3 {[%emt 0:00:39]} 21. Be2 {[%emt 0:11:54]} c6 {[%emt 0:06:15]} 22. Kb1 {[%emt 0:10:48]} Qe7 {[%emt 0:04:53]} 23. Qg5 {[%emt 0:04:09]} Ne8 {[%emt 0:04:43]} 24. Bh5 {[%emt 0:02:54]} Bg6 {[%emt 0:03:26]} 25. Bxg6 {[%emt 0:00:12]} hxg6 {[%emt 0:00:06]} 26. Qxg6 {[%emt 0:01:37]} Qf6 {[%emt 0:02:38]} 27. Nxe4 {[%emt 0:02:08]} Qxg6 {[%emt 0:01:24]} 28. Rxg6 {[%emt 0:00:02]} Ra4 {[%emt 0:00:43]} 29. dxc6 {[%emt 0:09:34]} bxc6 {[%emt 0:05:35]} 30. Re6 {[%emt 0:00:30]} Rf8 {[%emt 0:01:31]} 31. Nxd6 {[%emt 0:04:18]} Nxd6 {[%emt 0:01:36]} 32. Rdxd6 {[%emt 0:00:03]} Rxc4 {[%emt 0:01:24]} 33. Rxc6 {[%emt 0:00:03]} Re4 {[%emt 0:01:30]} 34. Rc3 {[%emt 0:01:48]} Rb8 {[%emt 0:00:24]} 35. Rg6 {[%emt 0:02:15]} Kh7 {[%emt 0:05:11]} 36. Rg4 {[%emt 0:00:57]} Rxg4 {[%emt 0:00:36]} 37. hxg4 {[%emt 0:00:02]} e4 {[%emt 0:04:50]} 38. Rc6 {[%emt 0:01:48]} Rd8 {[%emt 0:01:13]} 39. Kc1 {[%emt 0:00:56]} Rh8 {[%emt 0:05:39]} 1-0

[Event "Lueneburg Open-A 2019"]
[Site "Lueneburg"]
[Date "2019.08.07"]
[Round "5.13"]
[White "Koenig, Christian"]
[Black "Terhorst, Jochen"]
[Result "1-0"]
[ECO "C60"]
[WhiteElo "2026"]
[BlackElo "2144"]
[Annotator "NA"]
[PlyCount "63"]
[EventDate "2019.08.03"]
[EventType "swiss"]
[EventCountry "GER"]
[SourceTitle "playchess.com"]
[Source "ChessBase"]
[SourceQuality "1"]
[TimeControl "40/5400+30:1800+30"]

1. e4 {[%emt 0:00:00]} e5 {[%emt 0:00:00]} 2. Nf3 {[%emt 0:00:01]} Nc6 {[%emt 0:00:00]} 3. Bb5 {[%emt 0:01:48]} Nge7 {[%emt 0:00:24]} 4. O-O {[%emt 0:00:51]} g6 {[%emt 0:00:24]} 5. c3 {[%emt 0:09:38]} a6 {[%emt 0:00:35]} 6. Ba4 {[%emt 0:00:16]} b5 {[%emt 0:00:20]} 7. Bc2 {[%emt 0:00:37]} Bg7 {[%emt 0:01:47]} 8. d4 {[%emt 0:02:31]} exd4 {[%emt 0:00:09]} 9. cxd4 {[%emt 0:00:09]} d6 {[%emt 0:02:56]} 10. h3 {[%emt 0:02:05]} O-O {[%emt 0:02:54]} 11. Nc3 {[%emt 0:04:00]} Bb7 {[%emt 0:04:36]} 12. Be3 {[%emt 0:03:06]} Na5 {[%emt 0:10:48]} 13. Qc1 {[%emt 0:01:30]} Re8 {[%emt 0:01:11]} 14. Ne2 {[%emt 0:20:08]} Qd7 {[%emt 0:13:30]} 15. Ng3 {[%emt 0:01:49]} c5 {[%emt 0:09:34]} 16. b3 {[%emt 0:18:25]} Rac8 {[%emt 0:13:01]} 17. d5 {[%emt 0:06:32]} c4 {[%emt 0:15:47]} 18. Qd2 {[%emt 0:01:15]} cxb3 {[%emt 0:04:41]} 19. axb3 {[%emt 0:00:10]} Bc3 {[%emt 0:00:19]} 20. Qd3 {[%emt 0:00:33]} Qc7 {[%emt 0:00:54]} 21. Ra2 {[%emt 0:00:42]} f5 {[%emt 0:01:35]} 22. exf5 {[%emt 0:01:59]} Nxd5 {[%emt 0:06:23]} 23. fxg6 {[%emt 0:00:51]} Rxe3 {[%emt 0:02:12]} 24. gxh7+ {[%emt 0:00:15]} Kh8 {[%emt 0:00:06]} 25. fxe3 {[%emt 0:00:33]} Nb4 {[%emt 0:00:35]} 26. Qg6 {[%emt 0:01:43]} Nxa2 {[%emt 0:00:57]} 27. Ng5 {[%emt 0:06:49]} Bd5 {[%emt 0:01:41]} 28. Nh5 {[%emt 0:00:33]} Nb4 {[%emt 0:01:03]} 29. Bf5 {[%emt 0:05:42]} Rf8 {[%emt 0:01:01]} 30. Be6 {[%emt 0:00:24]} Rxf1+ {[%emt 0:01:30]} 31. Kxf1 {[%emt 0:00:05]} Bxe6 {[%emt 0:00:40]} 32. Qe8+ {[%emt 0:11:00] Qd8} 1-0

[Event "Lueneburg Open-A 2019"]
[Site "Lueneburg"]
[Date "2019.08.07"]
[Round "5.14"]
[White "Ishak, Rashid"]
[Black "Garner, Isaac"]
[Result "1/2-1/2"]
[ECO "D05"]
[WhiteElo "2141"]
[BlackElo "1974"]
[Annotator "ChessBase"]
[PlyCount "117"]
[EventDate "2019.08.03"]
[EventType "swiss"]
[EventCountry "GER"]
[SourceTitle "playchess.com"]
[Source "ChessBase"]
[SourceQuality "1"]
[TimeControl "40/5400+30:1800+30"]

1. b3 {[%emt 0:00:00]} d5 {[%emt 0:03:00]} 2. Bb2 {[%emt 0:00:00]} Nf6 {[%emt 0:00:13]} 3. Nf3 {[%emt 0:00:05]} e6 {[%emt 0:00:32]} 4. e3 {[%emt 0:00:24]} Be7 {[%emt 0:00:59]} 5. d4 {[%emt 0:00:19]} O-O {[%emt 0:00:51]} 6. Bd3 {[%emt 0:00:15]} b6 {[%emt 0:00:53]} 7. O-O {[%emt 0:00:18]} Ba6 {[%emt 0:00:20]} 8. c4 {[%emt 0:00:10]} Nbd7 {[%emt 0:02:37]} 9. Nbd2 {[%emt 0:01:54]} c5 {[%emt 0:01:57]} 10. Qe2 {[%emt 0:00:58]} Rc8 {[%emt 0:03:55]} 11. Rac1 {[%emt 0:01:57]} Qc7 {[%emt 0:09:54]} 12. Rfd1 {[%emt 0:12:04]} Qb8 {[%emt 0:05:09]} 13. g3 {[%emt 0:12:18]} Rfd8 {[%emt 0:03:52]} 14. e4 {[%emt 0:04:54]} dxe4 {[%emt 0:04:05]} 15. Nxe4 {[%emt 0:00:14]} Nxe4 {[%emt 0:04:23]} 16. Qxe4 {[%emt 0:00:34]} Nf6 {[%emt 0:01:15]} 17. Qe3 {[%emt 0:04:43]} Bb7 {[%emt 0:04:08]} 18. d5 {[%emt 0:18:47]} exd5 {[%emt 0:06:45]} 19. Be5 {[%emt 0:00:26]} Qa8 {[%emt 0:08:54]} 20. Qf4 {[%emt 0:14:14]} dxc4 {[%emt 0:04:50]} 21. Nh4 {[%emt 0:00:07]} cxd3 {[%emt 0:05:58]} 22. Nf5 {[%emt 0:00:25]} Bf8 {[%emt 0:06:18]} 23. Nh6+ {[%emt 0:04:33]} Kh8 {[%emt 0:00:09]} 24. Nxf7+ {[%emt 0:00:29]} Kg8 {[%emt 0:00:04]} 25. Nxd8 {[%emt 0:00:33]} Rxd8 {[%emt 0:00:11]} 26. Bxf6 {[%emt 0:01:32]} gxf6 {[%emt 0:00:38]} 27. Qc4+ {[%emt 0:02:04]} Kh8 {[%emt 0:05:49]} 28. Rxd3 {[%emt 0:00:56]} Bh1 {[%emt 0:01:38]} 29. f3 {[%emt 0:00:42]} Rxd3 {[%emt 0:00:21]} 30. Qxd3 {[%emt 0:00:12]} Qxf3 {[%emt 0:02:16]} 31. Qxf3 {[%emt 0:00:15]} Bxf3 {[%emt 0:00:09]} 32. Rf1 {[%emt 0:00:04]} Bd5 {[%emt 0:00:58]} 33. Rxf6 {[%emt 0:00:29]} Bg7 {[%emt 0:00:08]} 34. Rd6 {[%emt 0:00:22]} Bd4+ {[%emt 0:00:28]} 35. Kf1 {[%emt 0:00:21]} Be4 {[%emt 0:03:15]} 36. Rd8+ {[%emt 0:04:15]} Kg7 {[%emt 0:00:09]} 37. Rd7+ {[%emt 0:00:02]} Kf6 {[%emt 0:00:07]} 38. Rxa7 {[%emt 0:00:07]} b5 {[%emt 0:05:08]} 39. Ke2 {[%emt 0:03:06]} c4 {[%emt 0:03:28]} 40. Ra6+ {[%emt 0:00:09]} Ke5 {[%emt 0:00:28]} 41. bxc4 {[%emt 0:30:13]} bxc4 {[%emt 0:30:04]} 42. Ra5+ {[%emt 0:05:08]} Kd6 {[%emt 0:00:11]} 43. Rb5 {[%emt 0:00:00]} c3 {[%emt 0:00:00]} 44. Rb8 {[%emt 0:00:00]} c2 {[%emt 0:00:00]} 45. Rc8 {[%emt 0:00:00]} Bb2 {[%emt 0:00:00]} 46. Kd2 {[%emt 0:00:00]} c1=Q+ {[%emt 0:00:00]} 47. Rxc1 {[%emt 0:00:00]} Bxc1+ {[%emt 0:00:00]} 48. Kxc1 {[%emt 0:00:00]} Ke5 {[%emt 0:00:00]} 49. Kd2 {[%emt 0:00:00]} Kd4 {[%emt 0:00:00]} 50. Ke2 {[%emt 0:00:00]} Bd5 {[%emt 0:00:00]} 51. a4 {[%emt 0:00:00]} Ke4 {[%emt 0:00:00]} 52. a5 {[%emt 0:00:00]} Kf5 {[%emt 0:00:00]} 53. Ke3 {[%emt 0:00:00]} Kg4 {[%emt 0:00:00]} 54. Kd4 {[%emt 0:00:00]} Bf3 {[%emt 0:00:00]} 55. Ke5 {[%emt 0:00:00]} Kh3 {[%emt 0:00:00]} 56. Kf4 {[%emt 0:00:00]} Bb7 {[%emt 0:00:00]} 57. Kg5 {[%emt 0:00:00]} Kxh2 {[%emt 0:00:00]} 58. Kh6 {[%emt 0:00:00]} Kxg3 {[%emt 0:00:00]} 59. Kxh7 {[%emt 0:18:52]} 1/2-1/2